Workbook

Sheet Battery Calculator for Runtime
C2: Lithium Ion Battery Calculator
B5: Cells in Series | C5: 5
B6: Cells in Paralell | C6: 2
B7: Standard Discharge Current (in Amps) | C7: 5
B8: Max Discharge Current (in Amps) | C8: 30
C10: Cell Characteristics
B11: Cell Type | C11: High Power | D11: High Power | E11: High Power | F11: High Capacity | G11: High Capacity | H11: High Power
B12: Vendor | C12: Moli | D12: LithiumWerks | E12: Moli | F12: LG | G12: LG | H12: Panasonic
B13: Model | C13: INR18650-P26A | D13: ANR26650M1B | E13: INR-21700-P42A | F13: INR18650MJ1 | G13: INR18650MJ1 | H13: UR18650A
B14: Chemistry | C14: Lithium Ion | D14: Lithium Iron Phosphate | E14: Lithium Ion | F14: Lithium Ion | G14: Lithium Ion | H14: Lithium Ion
B15: Size | C15: 18650 | D15: 26650 | E15: 21700 | F15: 18650 | G15: 18650 | H15: 18650
B16: Nominal Capacity | C16: =IFERROR( _xlfn.XLOOKUP($B16,'Runtime Calculator'!$A$17:$A$24,_xlfn.XLOOKUP(C$13,'Runtime Calculator'!$B$12:$D$12,'Runtime Calculator'!$B$17:$D$24)),"") -> 2600 | D16: =IFERROR( _xlfn.XLOOKUP($B16,'Runtime Calculator'!$A$17:$A$24,_xlfn.XLOOKUP(D$13,'Runtime Calculator'!$B$12:$D$12,'Runtime Calculator'!$B$17:$D$24)),"") -> 2600 | E16: =IFERROR( _xlfn.XLOOKUP($B16,'Runtime Calculator'!$A$17:$A$24,_xlfn.XLOOKUP(E$13,'Runtime Calculator'!$B$12:$D$12,'Runtime Calculator'!$B$17:$D$24)),"") -> 4200 | F16: =IFERROR( _xlfn.XLOOKUP($B16,'Runtime Calculator'!$A$17:$A$24,_xlfn.XLOOKUP(F$13,'Runtime Calculator'!$B$12:$D$12,'Runtime Calculator'!$B$17:$D$24)),"") ->  | G16: =IFERROR( _xlfn.XLOOKUP($B16,'Runtime Calculator'!$A$17:$A$24,_xlfn.XLOOKUP(G$13,'Runtime Calculator'!$B$12:$D$12,'Runtime Calculator'!$B$17:$D$24)),"") ->  | H16: =IFERROR( _xlfn.XLOOKUP($B16,'Runtime Calculator'!$A$17:$A$24,_xlfn.XLOOKUP(H$13,'Runtime Calculator'!$B$12:$D$12,'Runtime Calculator'!$B$17:$D$24)),"") -> 
B17: Minimum Capacity | C17: =IFERROR( _xlfn.XLOOKUP($B17,'Runtime Calculator'!$A$17:$A$24,_xlfn.XLOOKUP(C$13,'Runtime Calculator'!$B$12:$D$12,'Runtime Calculator'!$B$17:$D$24)),"") -> 0 | D17: =IFERROR( _xlfn.XLOOKUP($B17,'Runtime Calculator'!$A$17:$A$24,_xlfn.XLOOKUP(D$13,'Runtime Calculator'!$B$12:$D$12,'Runtime Calculator'!$B$17:$D$24)),"") -> 2500 | E17: =IFERROR( _xlfn.XLOOKUP($B17,'Runtime Calculator'!$A$17:$A$24,_xlfn.XLOOKUP(E$13,'Runtime Calculator'!$B$12:$D$12,'Runtime Calculator'!$B$17:$D$24)),"") -> 4000 | F17: =IFERROR( _xlfn.XLOOKUP($B17,'Runtime Calculator'!$A$17:$A$24,_xlfn.XLOOKUP(F$13,'Runtime Calculator'!$B$12:$D$12,'Runtime Calculator'!$B$17:$D$24)),"") ->  | G17: =IFERROR( _xlfn.XLOOKUP($B17,'Runtime Calculator'!$A$17:$A$24,_xlfn.XLOOKUP(G$13,'Runtime Calculator'!$B$12:$D$12,'Runtime Calculator'!$B$17:$D$24)),"") ->  | H17: =IFERROR( _xlfn.XLOOKUP($B17,'Runtime Calculator'!$A$17:$A$24,_xlfn.XLOOKUP(H$13,'Runtime Calculator'!$B$12:$D$12,'Runtime Calculator'!$B$17:$D$24)),"") -> 
B18: Voltage | C18: =IFERROR( _xlfn.XLOOKUP($B18,'Runtime Calculator'!$A$17:$A$24,_xlfn.XLOOKUP(C$13,'Runtime Calculator'!$B$12:$D$12,'Runtime Calculator'!$B$17:$D$24)),"") -> 3.6 | D18: =IFERROR( _xlfn.XLOOKUP($B18,'Runtime Calculator'!$A$17:$A$24,_xlfn.XLOOKUP(D$13,'Runtime Calculator'!$B$12:$D$12,'Runtime Calculator'!$B$17:$D$24)),"") -> 3.3 | E18: =IFERROR( _xlfn.XLOOKUP($B18,'Runtime Calculator'!$A$17:$A$24,_xlfn.XLOOKUP(E$13,'Runtime Calculator'!$B$12:$D$12,'Runtime Calculator'!$B$17:$D$24)),"") -> 3.6 | F18: =IFERROR( _xlfn.XLOOKUP($B18,'Runtime Calculator'!$A$17:$A$24,_xlfn.XLOOKUP(F$13,'Runtime Calculator'!$B$12:$D$12,'Runtime Calculator'!$B$17:$D$24)),"") ->  | G18: =IFERROR( _xlfn.XLOOKUP($B18,'Runtime Calculator'!$A$17:$A$24,_xlfn.XLOOKUP(G$13,'Runtime Calculator'!$B$12:$D$12,'Runtime Calculator'!$B$17:$D$24)),"") ->  | H18: =IFERROR( _xlfn.XLOOKUP($B18,'Runtime Calculator'!$A$17:$A$24,_xlfn.XLOOKUP(H$13,'Runtime Calculator'!$B$12:$D$12,'Runtime Calculator'!$B$17:$D$24)),"") -> 
B19: Cutoff Voltag | C19: =IFERROR( _xlfn.XLOOKUP($B19,'Runtime Calculator'!$A$17:$A$24,_xlfn.XLOOKUP(C$13,'Runtime Calculator'!$B$12:$D$12,'Runtime Calculator'!$B$17:$D$24)),"") -> 2.5 | D19: =IFERROR( _xlfn.XLOOKUP($B19,'Runtime Calculator'!$A$17:$A$24,_xlfn.XLOOKUP(D$13,'Runtime Calculator'!$B$12:$D$12,'Runtime Calculator'!$B$17:$D$24)),"") -> 2 | E19: =IFERROR( _xlfn.XLOOKUP($B19,'Runtime Calculator'!$A$17:$A$24,_xlfn.XLOOKUP(E$13,'Runtime Calculator'!$B$12:$D$12,'Runtime Calculator'!$B$17:$D$24)),"") -> 2.5 | F19: =IFERROR( _xlfn.XLOOKUP($B19,'Runtime Calculator'!$A$17:$A$24,_xlfn.XLOOKUP(F$13,'Runtime Calculator'!$B$12:$D$12,'Runtime Calculator'!$B$17:$D$24)),"") ->  | G19: =IFERROR( _xlfn.XLOOKUP($B19,'Runtime Calculator'!$A$17:$A$24,_xlfn.XLOOKUP(G$13,'Runtime Calculator'!$B$12:$D$12,'Runtime Calculator'!$B$17:$D$24)),"") ->  | H19: =IFERROR( _xlfn.XLOOKUP($B19,'Runtime Calculator'!$A$17:$A$24,_xlfn.XLOOKUP(H$13,'Runtime Calculator'!$B$12:$D$12,'Runtime Calculator'!$B$17:$D$24)),"") -> 
B20: Max Current | C20: =IFERROR( _xlfn.XLOOKUP($B20,'Runtime Calculator'!$A$17:$A$24,_xlfn.XLOOKUP(C$13,'Runtime Calculator'!$B$12:$D$12,'Runtime Calculator'!$B$17:$D$24)),"") -> 35 | D20: =IFERROR( _xlfn.XLOOKUP($B20,'Runtime Calculator'!$A$17:$A$24,_xlfn.XLOOKUP(D$13,'Runtime Calculator'!$B$12:$D$12,'Runtime Calculator'!$B$17:$D$24)),"") -> 120 | E20: =IFERROR( _xlfn.XLOOKUP($B20,'Runtime Calculator'!$A$17:$A$24,_xlfn.XLOOKUP(E$13,'Runtime Calculator'!$B$12:$D$12,'Runtime Calculator'!$B$17:$D$24)),"") -> 45 | F20: =IFERROR( _xlfn.XLOOKUP($B20,'Runtime Calculator'!$A$17:$A$24,_xlfn.XLOOKUP(F$13,'Runtime Calculator'!$B$12:$D$12,'Runtime Calculator'!$B$17:$D$24)),"") ->  | G20: =IFERROR( _xlfn.XLOOKUP($B20,'Runtime Calculator'!$A$17:$A$24,_xlfn.XLOOKUP(G$13,'Runtime Calculator'!$B$12:$D$12,'Runtime Calculator'!$B$17:$D$24)),"") ->  | H20: =IFERROR( _xlfn.XLOOKUP($B20,'Runtime Calculator'!$A$17:$A$24,_xlfn.XLOOKUP(H$13,'Runtime Calculator'!$B$12:$D$12,'Runtime Calculator'!$B$17:$D$24)),"") -> 
B21: Max Charge | C21: =IFERROR( _xlfn.XLOOKUP($B21,'Runtime Calculator'!$A$17:$A$24,_xlfn.XLOOKUP(C$13,'Runtime Calculator'!$B$12:$D$12,'Runtime Calculator'!$B$17:$D$24)),"") -> 6 | D21: =IFERROR( _xlfn.XLOOKUP($B21,'Runtime Calculator'!$A$17:$A$24,_xlfn.XLOOKUP(D$13,'Runtime Calculator'!$B$12:$D$12,'Runtime Calculator'!$B$17:$D$24)),"") -> 10 | E21: =IFERROR( _xlfn.XLOOKUP($B21,'Runtime Calculator'!$A$17:$A$24,_xlfn.XLOOKUP(E$13,'Runtime Calculator'!$B$12:$D$12,'Runtime Calculator'!$B$17:$D$24)),"") -> 0 | F21: =IFERROR( _xlfn.XLOOKUP($B21,'Runtime Calculator'!$A$17:$A$24,_xlfn.XLOOKUP(F$13,'Runtime Calculator'!$B$12:$D$12,'Runtime Calculator'!$B$17:$D$24)),"") ->  | G21: =IFERROR( _xlfn.XLOOKUP($B21,'Runtime Calculator'!$A$17:$A$24,_xlfn.XLOOKUP(G$13,'Runtime Calculator'!$B$12:$D$12,'Runtime Calculator'!$B$17:$D$24)),"") ->  | H21: =IFERROR( _xlfn.XLOOKUP($B21,'Runtime Calculator'!$A$17:$A$24,_xlfn.XLOOKUP(H$13,'Runtime Calculator'!$B$12:$D$12,'Runtime Calculator'!$B$17:$D$24)),"") -> 
B22: Standard Charge Current | C22: =IFERROR( _xlfn.XLOOKUP($B22,'Runtime Calculator'!$A$17:$A$24,_xlfn.XLOOKUP(C$13,'Runtime Calculator'!$B$12:$D$12,'Runtime Calculator'!$B$17:$D$24)),"") -> 2.6 | D22: =IFERROR( _xlfn.XLOOKUP($B22,'Runtime Calculator'!$A$17:$A$24,_xlfn.XLOOKUP(D$13,'Runtime Calculator'!$B$12:$D$12,'Runtime Calculator'!$B$17:$D$24)),"") -> 3 | E22: =IFERROR( _xlfn.XLOOKUP($B22,'Runtime Calculator'!$A$17:$A$24,_xlfn.XLOOKUP(E$13,'Runtime Calculator'!$B$12:$D$12,'Runtime Calculator'!$B$17:$D$24)),"") -> 4.2 | F22: =IFERROR( _xlfn.XLOOKUP($B22,'Runtime Calculator'!$A$17:$A$24,_xlfn.XLOOKUP(F$13,'Runtime Calculator'!$B$12:$D$12,'Runtime Calculator'!$B$17:$D$24)),"") ->  | G22: =IFERROR( _xlfn.XLOOKUP($B22,'Runtime Calculator'!$A$17:$A$24,_xlfn.XLOOKUP(G$13,'Runtime Calculator'!$B$12:$D$12,'Runtime Calculator'!$B$17:$D$24)),"") ->  | H22: =IFERROR( _xlfn.XLOOKUP($B22,'Runtime Calculator'!$A$17:$A$24,_xlfn.XLOOKUP(H$13,'Runtime Calculator'!$B$12:$D$12,'Runtime Calculator'!$B$17:$D$24)),"") -> 
B23: Standard Charge Time | C23: =IFERROR( _xlfn.XLOOKUP($B23,'Runtime Calculator'!$A$17:$A$24,_xlfn.XLOOKUP(C$13,'Runtime Calculator'!$B$12:$D$12,'Runtime Calculator'!$B$17:$D$24)),"") -> 1.5 | D23: =IFERROR( _xlfn.XLOOKUP($B23,'Runtime Calculator'!$A$17:$A$24,_xlfn.XLOOKUP(D$13,'Runtime Calculator'!$B$12:$D$12,'Runtime Calculator'!$B$17:$D$24)),"") -> 0 | E23: =IFERROR( _xlfn.XLOOKUP($B23,'Runtime Calculator'!$A$17:$A$24,_xlfn.XLOOKUP(E$13,'Runtime Calculator'!$B$12:$D$12,'Runtime Calculator'!$B$17:$D$24)),"") -> 1.5 | F23: =IFERROR( _xlfn.XLOOKUP($B23,'Runtime Calculator'!$A$17:$A$24,_xlfn.XLOOKUP(F$13,'Runtime Calculator'!$B$12:$D$12,'Runtime Calculator'!$B$17:$D$24)),"") ->  | G23: =IFERROR( _xlfn.XLOOKUP($B23,'Runtime Calculator'!$A$17:$A$24,_xlfn.XLOOKUP(G$13,'Runtime Calculator'!$B$12:$D$12,'Runtime Calculator'!$B$17:$D$24)),"") ->  | H23: =IFERROR( _xlfn.XLOOKUP($B23,'Runtime Calculator'!$A$17:$A$24,_xlfn.XLOOKUP(H$13,'Runtime Calculator'!$B$12:$D$12,'Runtime Calculator'!$B$17:$D$24)),"") -> 
C25: Battery Pack Characteristics
B26: Pack Voltage | C26: =IFERROR(_xlfn.XLOOKUP($B26,'Runtime Calculator'!$A$29:$A$38,_xlfn.XLOOKUP(C$13,'Runtime Calculator'!$B$28:$D$28,'Runtime Calculator'!$B$29:$D$38,"")),"") -> 18 | D26: =IFERROR(_xlfn.XLOOKUP($B26,'Runtime Calculator'!$A$29:$A$38,_xlfn.XLOOKUP(D$13,'Runtime Calculator'!$B$28:$D$28,'Runtime Calculator'!$B$29:$D$38,"")),"") -> 16.5 | E26: =IFERROR(_xlfn.XLOOKUP($B26,'Runtime Calculator'!$A$29:$A$38,_xlfn.XLOOKUP(E$13,'Runtime Calculator'!$B$28:$D$28,'Runtime Calculator'!$B$29:$D$38,"")),"") -> 18 | F26: =IFERROR(_xlfn.XLOOKUP($B26,'Runtime Calculator'!$A$29:$A$38,_xlfn.XLOOKUP(F$13,'Runtime Calculator'!$B$28:$D$28,'Runtime Calculator'!$B$29:$D$38,"")),"") ->  | G26: =IFERROR(_xlfn.XLOOKUP($B26,'Runtime Calculator'!$A$29:$A$38,_xlfn.XLOOKUP(G$13,'Runtime Calculator'!$B$28:$D$28,'Runtime Calculator'!$B$29:$D$38,"")),"") ->  | H26: =IFERROR(_xlfn.XLOOKUP($B26,'Runtime Calculator'!$A$29:$A$38,_xlfn.XLOOKUP(H$13,'Runtime Calculator'!$B$28:$D$28,'Runtime Calculator'!$B$29:$D$38,"")),"") -> 
B27: Pack Cutoff Voltage | C27: =IFERROR(_xlfn.XLOOKUP($B27,'Runtime Calculator'!$A$29:$A$38,_xlfn.XLOOKUP(C$13,'Runtime Calculator'!$B$28:$D$28,'Runtime Calculator'!$B$29:$D$38,"")),"") -> 12.5 | D27: =IFERROR(_xlfn.XLOOKUP($B27,'Runtime Calculator'!$A$29:$A$38,_xlfn.XLOOKUP(D$13,'Runtime Calculator'!$B$28:$D$28,'Runtime Calculator'!$B$29:$D$38,"")),"") -> 10 | E27: =IFERROR(_xlfn.XLOOKUP($B27,'Runtime Calculator'!$A$29:$A$38,_xlfn.XLOOKUP(E$13,'Runtime Calculator'!$B$28:$D$28,'Runtime Calculator'!$B$29:$D$38,"")),"") -> 12.5 | F27: =IFERROR(_xlfn.XLOOKUP($B27,'Runtime Calculator'!$A$29:$A$38,_xlfn.XLOOKUP(F$13,'Runtime Calculator'!$B$28:$D$28,'Runtime Calculator'!$B$29:$D$38,"")),"") ->  | G27: =IFERROR(_xlfn.XLOOKUP($B27,'Runtime Calculator'!$A$29:$A$38,_xlfn.XLOOKUP(G$13,'Runtime Calculator'!$B$28:$D$28,'Runtime Calculator'!$B$29:$D$38,"")),"") ->  | H27: =IFERROR(_xlfn.XLOOKUP($B27,'Runtime Calculator'!$A$29:$A$38,_xlfn.XLOOKUP(H$13,'Runtime Calculator'!$B$28:$D$28,'Runtime Calculator'!$B$29:$D$38,"")),"") -> 
B28: Rated Capacity (mAh) | C28: =IFERROR(_xlfn.XLOOKUP($B28,'Runtime Calculator'!$A$29:$A$38,_xlfn.XLOOKUP(C$13,'Runtime Calculator'!$B$28:$D$28,'Runtime Calculator'!$B$29:$D$38,"")),"") -> 5200 | D28: =IFERROR(_xlfn.XLOOKUP($B28,'Runtime Calculator'!$A$29:$A$38,_xlfn.XLOOKUP(D$13,'Runtime Calculator'!$B$28:$D$28,'Runtime Calculator'!$B$29:$D$38,"")),"") -> 5200 | E28: =IFERROR(_xlfn.XLOOKUP($B28,'Runtime Calculator'!$A$29:$A$38,_xlfn.XLOOKUP(E$13,'Runtime Calculator'!$B$28:$D$28,'Runtime Calculator'!$B$29:$D$38,"")),"") -> 8400 | F28: =IFERROR(_xlfn.XLOOKUP($B28,'Runtime Calculator'!$A$29:$A$38,_xlfn.XLOOKUP(F$13,'Runtime Calculator'!$B$28:$D$28,'Runtime Calculator'!$B$29:$D$38,"")),"") ->  | G28: =IFERROR(_xlfn.XLOOKUP($B28,'Runtime Calculator'!$A$29:$A$38,_xlfn.XLOOKUP(G$13,'Runtime Calculator'!$B$28:$D$28,'Runtime Calculator'!$B$29:$D$38,"")),"") ->  | H28: =IFERROR(_xlfn.XLOOKUP($B28,'Runtime Calculator'!$A$29:$A$38,_xlfn.XLOOKUP(H$13,'Runtime Calculator'!$B$28:$D$28,'Runtime Calculator'!$B$29:$D$38,"")),"") -> 
B29: Rated Capacity (Ah) | C29: =IFERROR(_xlfn.XLOOKUP($B29,'Runtime Calculator'!$A$29:$A$38,_xlfn.XLOOKUP(C$13,'Runtime Calculator'!$B$28:$D$28,'Runtime Calculator'!$B$29:$D$38,"")),"") -> 5.2 | D29: =IFERROR(_xlfn.XLOOKUP($B29,'Runtime Calculator'!$A$29:$A$38,_xlfn.XLOOKUP(D$13,'Runtime Calculator'!$B$28:$D$28,'Runtime Calculator'!$B$29:$D$38,"")),"") -> 5.2 | E29: =IFERROR(_xlfn.XLOOKUP($B29,'Runtime Calculator'!$A$29:$A$38,_xlfn.XLOOKUP(E$13,'Runtime Calculator'!$B$28:$D$28,'Runtime Calculator'!$B$29:$D$38,"")),"") -> 8.4 | F29: =IFERROR(_xlfn.XLOOKUP($B29,'Runtime Calculator'!$A$29:$A$38,_xlfn.XLOOKUP(F$13,'Runtime Calculator'!$B$28:$D$28,'Runtime Calculator'!$B$29:$D$38,"")),"") ->  | G29: =IFERROR(_xlfn.XLOOKUP($B29,'Runtime Calculator'!$A$29:$A$38,_xlfn.XLOOKUP(G$13,'Runtime Calculator'!$B$28:$D$28,'Runtime Calculator'!$B$29:$D$38,"")),"") ->  | H29: =IFERROR(_xlfn.XLOOKUP($B29,'Runtime Calculator'!$A$29:$A$38,_xlfn.XLOOKUP(H$13,'Runtime Calculator'!$B$28:$D$28,'Runtime Calculator'!$B$29:$D$38,"")),"") -> 
B30: Wh | C30: =IFERROR(_xlfn.XLOOKUP($B30,'Runtime Calculator'!$A$29:$A$38,_xlfn.XLOOKUP(C$13,'Runtime Calculator'!$B$28:$D$28,'Runtime Calculator'!$B$29:$D$38,"")),"") -> 93.6 | D30: =IFERROR(_xlfn.XLOOKUP($B30,'Runtime Calculator'!$A$29:$A$38,_xlfn.XLOOKUP(D$13,'Runtime Calculator'!$B$28:$D$28,'Runtime Calculator'!$B$29:$D$38,"")),"") -> 85.8 | E30: =IFERROR(_xlfn.XLOOKUP($B30,'Runtime Calculator'!$A$29:$A$38,_xlfn.XLOOKUP(E$13,'Runtime Calculator'!$B$28:$D$28,'Runtime Calculator'!$B$29:$D$38,"")),"") -> 151.2 | F30: =IFERROR(_xlfn.XLOOKUP($B30,'Runtime Calculator'!$A$29:$A$38,_xlfn.XLOOKUP(F$13,'Runtime Calculator'!$B$28:$D$28,'Runtime Calculator'!$B$29:$D$38,"")),"") ->  | G30: =IFERROR(_xlfn.XLOOKUP($B30,'Runtime Calculator'!$A$29:$A$38,_xlfn.XLOOKUP(G$13,'Runtime Calculator'!$B$28:$D$28,'Runtime Calculator'!$B$29:$D$38,"")),"") ->  | H30: =IFERROR(_xlfn.XLOOKUP($B30,'Runtime Calculator'!$A$29:$A$38,_xlfn.XLOOKUP(H$13,'Runtime Calculator'!$B$28:$D$28,'Runtime Calculator'!$B$29:$D$38,"")),"") -> 
B31: Max Current | C31: =IFERROR(_xlfn.XLOOKUP($B31,'Runtime Calculator'!$A$29:$A$38,_xlfn.XLOOKUP(C$13,'Runtime Calculator'!$B$28:$D$28,'Runtime Calculator'!$B$29:$D$38,"")),"") -> 70 | D31: =IFERROR(_xlfn.XLOOKUP($B31,'Runtime Calculator'!$A$29:$A$38,_xlfn.XLOOKUP(D$13,'Runtime Calculator'!$B$28:$D$28,'Runtime Calculator'!$B$29:$D$38,"")),"") -> 240 | E31: =IFERROR(_xlfn.XLOOKUP($B31,'Runtime Calculator'!$A$29:$A$38,_xlfn.XLOOKUP(E$13,'Runtime Calculator'!$B$28:$D$28,'Runtime Calculator'!$B$29:$D$38,"")),"") -> 90 | F31: =IFERROR(_xlfn.XLOOKUP($B31,'Runtime Calculator'!$A$29:$A$38,_xlfn.XLOOKUP(F$13,'Runtime Calculator'!$B$28:$D$28,'Runtime Calculator'!$B$29:$D$38,"")),"") ->  | G31: =IFERROR(_xlfn.XLOOKUP($B31,'Runtime Calculator'!$A$29:$A$38,_xlfn.XLOOKUP(G$13,'Runtime Calculator'!$B$28:$D$28,'Runtime Calculator'!$B$29:$D$38,"")),"") ->  | H31: =IFERROR(_xlfn.XLOOKUP($B31,'Runtime Calculator'!$A$29:$A$38,_xlfn.XLOOKUP(H$13,'Runtime Calculator'!$B$28:$D$28,'Runtime Calculator'!$B$29:$D$38,"")),"") -> 
B32: Standard Current Per Cell | C32: =IFERROR(_xlfn.XLOOKUP($B32,'Runtime Calculator'!$A$29:$A$38,_xlfn.XLOOKUP(C$13,'Runtime Calculator'!$B$28:$D$28,'Runtime Calculator'!$B$29:$D$38,"")),"") -> 2.5 | D32: =IFERROR(_xlfn.XLOOKUP($B32,'Runtime Calculator'!$A$29:$A$38,_xlfn.XLOOKUP(D$13,'Runtime Calculator'!$B$28:$D$28,'Runtime Calculator'!$B$29:$D$38,"")),"") -> 2.5 | E32: =IFERROR(_xlfn.XLOOKUP($B32,'Runtime Calculator'!$A$29:$A$38,_xlfn.XLOOKUP(E$13,'Runtime Calculator'!$B$28:$D$28,'Runtime Calculator'!$B$29:$D$38,"")),"") -> 2.5 | F32: =IFERROR(_xlfn.XLOOKUP($B32,'Runtime Calculator'!$A$29:$A$38,_xlfn.XLOOKUP(F$13,'Runtime Calculator'!$B$28:$D$28,'Runtime Calculator'!$B$29:$D$38,"")),"") ->  | G32: =IFERROR(_xlfn.XLOOKUP($B32,'Runtime Calculator'!$A$29:$A$38,_xlfn.XLOOKUP(G$13,'Runtime Calculator'!$B$28:$D$28,'Runtime Calculator'!$B$29:$D$38,"")),"") ->  | H32: =IFERROR(_xlfn.XLOOKUP($B32,'Runtime Calculator'!$A$29:$A$38,_xlfn.XLOOKUP(H$13,'Runtime Calculator'!$B$28:$D$28,'Runtime Calculator'!$B$29:$D$38,"")),"") -> 
B33: Cell Capacity at Standard Current | C33: =IFERROR(_xlfn.XLOOKUP($B33,'Runtime Calculator'!$A$29:$A$38,_xlfn.XLOOKUP(C$13,'Runtime Calculator'!$B$28:$D$28,'Runtime Calculator'!$B$29:$D$38,"")),"") -> 2454.807692 | D33: =IFERROR(_xlfn.XLOOKUP($B33,'Runtime Calculator'!$A$29:$A$38,_xlfn.XLOOKUP(D$13,'Runtime Calculator'!$B$28:$D$28,'Runtime Calculator'!$B$29:$D$38,"")),"") -> 2540 | E33: =IFERROR(_xlfn.XLOOKUP($B33,'Runtime Calculator'!$A$29:$A$38,_xlfn.XLOOKUP(E$13,'Runtime Calculator'!$B$28:$D$28,'Runtime Calculator'!$B$29:$D$38,"")),"") -> 4225.297619 | F33: =IFERROR(_xlfn.XLOOKUP($B33,'Runtime Calculator'!$A$29:$A$38,_xlfn.XLOOKUP(F$13,'Runtime Calculator'!$B$28:$D$28,'Runtime Calculator'!$B$29:$D$38,"")),"") ->  | G33: =IFERROR(_xlfn.XLOOKUP($B33,'Runtime Calculator'!$A$29:$A$38,_xlfn.XLOOKUP(G$13,'Runtime Calculator'!$B$28:$D$28,'Runtime Calculator'!$B$29:$D$38,"")),"") ->  | H33: =IFERROR(_xlfn.XLOOKUP($B33,'Runtime Calculator'!$A$29:$A$38,_xlfn.XLOOKUP(H$13,'Runtime Calculator'!$B$28:$D$28,'Runtime Calculator'!$B$29:$D$38,"")),"") -> 
B34: Pack Capacity at Standard Current | C34: =IFERROR(_xlfn.XLOOKUP($B34,'Runtime Calculator'!$A$29:$A$38,_xlfn.XLOOKUP(C$13,'Runtime Calculator'!$B$28:$D$28,'Runtime Calculator'!$B$29:$D$38,"")),"") -> 4909.615385 | D34: =IFERROR(_xlfn.XLOOKUP($B34,'Runtime Calculator'!$A$29:$A$38,_xlfn.XLOOKUP(D$13,'Runtime Calculator'!$B$28:$D$28,'Runtime Calculator'!$B$29:$D$38,"")),"") -> 5080 | E34: =IFERROR(_xlfn.XLOOKUP($B34,'Runtime Calculator'!$A$29:$A$38,_xlfn.XLOOKUP(E$13,'Runtime Calculator'!$B$28:$D$28,'Runtime Calculator'!$B$29:$D$38,"")),"") -> 8450.595238 | F34: =IFERROR(_xlfn.XLOOKUP($B34,'Runtime Calculator'!$A$29:$A$38,_xlfn.XLOOKUP(F$13,'Runtime Calculator'!$B$28:$D$28,'Runtime Calculator'!$B$29:$D$38,"")),"") ->  | G34: =IFERROR(_xlfn.XLOOKUP($B34,'Runtime Calculator'!$A$29:$A$38,_xlfn.XLOOKUP(G$13,'Runtime Calculator'!$B$28:$D$28,'Runtime Calculator'!$B$29:$D$38,"")),"") ->  | H34: =IFERROR(_xlfn.XLOOKUP($B34,'Runtime Calculator'!$A$29:$A$38,_xlfn.XLOOKUP(H$13,'Runtime Calculator'!$B$28:$D$28,'Runtime Calculator'!$B$29:$D$38,"")),"") -> 
B35: Run Time (hours) | C35: =IFERROR(_xlfn.XLOOKUP($B35,'Runtime Calculator'!$A$29:$A$38,_xlfn.XLOOKUP(C$13,'Runtime Calculator'!$B$28:$D$28,'Runtime Calculator'!$B$29:$D$38,"")),"") -> 0.9819230769 | D35: =IFERROR(_xlfn.XLOOKUP($B35,'Runtime Calculator'!$A$29:$A$38,_xlfn.XLOOKUP(D$13,'Runtime Calculator'!$B$28:$D$28,'Runtime Calculator'!$B$29:$D$38,"")),"") -> 1.016 | E35: =IFERROR(_xlfn.XLOOKUP($B35,'Runtime Calculator'!$A$29:$A$38,_xlfn.XLOOKUP(E$13,'Runtime Calculator'!$B$28:$D$28,'Runtime Calculator'!$B$29:$D$38,"")),"") -> 1.690119048 | F35: =IFERROR(_xlfn.XLOOKUP($B35,'Runtime Calculator'!$A$29:$A$38,_xlfn.XLOOKUP(F$13,'Runtime Calculator'!$B$28:$D$28,'Runtime Calculator'!$B$29:$D$38,"")),"") ->  | G35: =IFERROR(_xlfn.XLOOKUP($B35,'Runtime Calculator'!$A$29:$A$38,_xlfn.XLOOKUP(G$13,'Runtime Calculator'!$B$28:$D$28,'Runtime Calculator'!$B$29:$D$38,"")),"") ->  | H35: =IFERROR(_xlfn.XLOOKUP($B35,'Runtime Calculator'!$A$29:$A$38,_xlfn.XLOOKUP(H$13,'Runtime Calculator'!$B$28:$D$28,'Runtime Calculator'!$B$29:$D$38,"")),"") -> 
B37: Notes | C37: =IFERROR( IF( $C$7 < _xlfn.XLOOKUP(C$13,'Runtime Calculator'!$B$12:$D$12,'Runtime Calculator'!$B$42:$D$42), "Run Time will be greater than listed Run Time",""),"") ->  | D37: =IFERROR( IF( $C$7 < _xlfn.XLOOKUP(D$13,'Runtime Calculator'!$B$12:$D$12,'Runtime Calculator'!$B$42:$D$42), "Run Time will be greater than listed Run Time",""),"") ->  | E37: =IFERROR( IF( $C$7 < _xlfn.XLOOKUP(E$13,'Runtime Calculator'!$B$12:$D$12,'Runtime Calculator'!$B$42:$D$42), "Run Time will be greater than listed Run Time",""),"") ->  | F37: =IFERROR( IF( $C$7 < _xlfn.XLOOKUP(F$13,'Runtime Calculator'!$B$12:$D$12,'Runtime Calculator'!$B$42:$D$42), "Run Time will be greater than listed Run Time",""),"") ->  | G37: =IFERROR( IF( $C$7 < _xlfn.XLOOKUP(G$13,'Runtime Calculator'!$B$12:$D$12,'Runtime Calculator'!$B$42:$D$42), "Run Time will be greater than listed Run Time",""),"") ->  | H37: =IFERROR( IF( $C$7 < _xlfn.XLOOKUP(H$13,'Runtime Calculator'!$B$12:$D$12,'Runtime Calculator'!$B$42:$D$42), "Run Time will be greater than listed Run Time",""),"") -> 
B39: Errors | C39: =IF($C$8>C$31,"Max Discharge Current higher than allowed by Cell","") -> 

Sheet Runtime Calculator
A1: Calculates Runtime Based on Configuration | C1: Insert new columns in between outer columns to maintain formulas on "Battery Calculator for Runtime" tab
A3: Input
A4: Series | B4: =+'Battery Calculator for Runtime'!$C5 -> 5 | C4: =+'Battery Calculator for Runtime'!$C5 -> 5 | D4: =+'Battery Calculator for Runtime'!$C5 -> 5 | E4: =+'Battery Calculator for Runtime'!$C5 -> 5 | F4: =+'Battery Calculator for Runtime'!$C5 -> 5 | G4: =+'Battery Calculator for Runtime'!$C5 -> 5
A5: Paralell | B5: =+'Battery Calculator for Runtime'!$C6 -> 2 | C5: =+'Battery Calculator for Runtime'!$C6 -> 2 | D5: =+'Battery Calculator for Runtime'!$C6 -> 2 | E5: =+'Battery Calculator for Runtime'!$C6 -> 2 | F5: =+'Battery Calculator for Runtime'!$C6 -> 2 | G5: =+'Battery Calculator for Runtime'!$C6 -> 2
A6: Standard Current | B6: =+'Battery Calculator for Runtime'!$C7 -> 5 | C6: =+'Battery Calculator for Runtime'!$C7 -> 5 | D6: =+'Battery Calculator for Runtime'!$C7 -> 5 | E6: =+'Battery Calculator for Runtime'!$C7 -> 5 | F6: =+'Battery Calculator for Runtime'!$C7 -> 5 | G6: =+'Battery Calculator for Runtime'!$C7 -> 5
A7: Max Current | B7: =+'Battery Calculator for Runtime'!$C8 -> 30 | C7: =+'Battery Calculator for Runtime'!$C8 -> 30 | D7: =+'Battery Calculator for Runtime'!$C8 -> 30 | E7: =+'Battery Calculator for Runtime'!$C8 -> 30 | F7: =+'Battery Calculator for Runtime'!$C8 -> 30 | G7: =+'Battery Calculator for Runtime'!$C8 -> 30
A9: Cell Data
A10: Cell Type | B10: High Power | C10: High Power | D10: High Power | E10: High Capacity | F10: High Capacity | G10: High Power
A11: Vendor | B11: Moli | C11: LithiumWerks | D11: Moli | E11: LG | F11: LG | G11: Panasonic
A12: Model | B12: INR18650-P26A | C12: ANR26650M1B | D12: INR-21700-P42A | E12: INR18650MJ1 | F12: INR18650MJ1 | G12: UR18650A
A13: Chemistry | B13: Lithium Ion | C13: Lithium Iron Phosphate | D13: Lithium Ion | E13: Lithium Ion | F13: Lithium Ion | G13: Lithium Ion
A14: Size | B14: 18650 | C14: 26650 | D14: 21700 | E14: 18650 | F14: 18650 | G14: 18650
A15: Discharge per Cell | B15: 2.5 | C15: 2.5 | D15: 2.5 | E15: 2.5 | F15: 2.5 | G15: 2.5
A17: Nominal Capacity | B17: 2600 | C17: 2600 | D17: 4200
A18: Minimum Capacity | C18: 2500 | D18: 4000
A19: Voltage | B19: 3.6 | C19: 3.3 | D19: 3.6
A20: Cutoff Voltag | B20: 2.5 | C20: 2 | D20: 2.5
A21: Max Current | B21: 35 | C21: 120 | D21: 45
A22: Max Charge | B22: 6 | C22: 10
A23: Standard Charge Current | B23: 2.6 | C23: 3 | D23: 4.2
A24: Standard Charge Time | B24: 1.5 | D24: 1.5
A27: Output
A28: Cell | B28: =B$12 -> INR18650-P26A | C28: =C$12 -> ANR26650M1B | D28: INR-21700-P42A | E28: =E$12 -> INR18650MJ1 | F28: =F$12 -> INR18650MJ1 | G28: =G$12 -> UR18650A
A29: Pack Voltage | B29: =+B4*B19 -> 18 | C29: 16.5 | D29: 18 | E29: =+E4*E19 -> 0 | F29: =+F4*F19 -> 0 | G29: =+G4*G19 -> 0
A30: Pack Cutoff Voltage | B30: =+B4*B20 -> 12.5 | C30: 10 | D30: 12.5 | E30: =+E4*E20 -> 0 | F30: =+F4*F20 -> 0 | G30: =+G4*G20 -> 0
A31: Rated Capacity (mAh) | B31: =+B5*B17 -> 5200 | C31: 5200 | D31: 8400 | E31: =+E5*E17 -> 0 | F31: =+F5*F17 -> 0 | G31: =+G5*G17 -> 0
A32: Rated Capacity (Ah) | B32: =+B31/1000 -> 5.2 | C32: 5.2 | D32: 8.4 | E32: =+E31/1000 -> 0 | F32: =+F31/1000 -> 0 | G32: =+G31/1000 -> 0
A33: Wh | B33: =+B29*B31/1000 -> 93.6 | C33: 85.8 | D33: 151.2 | E33: =+E29*E31/1000 -> 0 | F33: =+F29*F31/1000 -> 0 | G33: =+G29*G31/1000 -> 0
A34: Max Current | B34: =+B5*B21 -> 70 | C34: 240 | D34: 90 | E34: =+E5*E21 -> 0 | F34: =+F5*F21 -> 0 | G34: =+G5*G21 -> 0
A35: Standard Current Per Cell | B35: =+B6/B5 -> 2.5 | C35: 2.5 | D35: 2.5 | E35: =+E6/E5 -> 2.5 | F35: =+F6/F5 -> 2.5 | G35: =+G6/G5 -> 2.5
A36: Cell Capacity at Standard Current | B36: =+B46 -> 2454.807692 | C36: 2540 | D36: 4225.297619 | E36: =+E46 -> 
A37: Pack Capacity at Standard Current | B37: =+B47 -> 4909.615385 | C37: 5080 | D37: 8450.595238
A38: Run Time (hours) | B38: =+B48 -> 0.9819230769 | C38: 1.016 | D38: 1.690119048
A40: Calculation
A41: Data in Table | B41: =IF( _xlfn.XLOOKUP(B$15 & B$12,Capacity[[Discharge to]:[Discharge to]] & Capacity[[Cell]:[Cell]],Capacity[[Discharge Current]:[Discharge Current]],0) > 0,TRUE,FALSE) -> TRUE | C41: =IF( _xlfn.XLOOKUP(C$15 & C$12,Capacity[[Discharge to]:[Discharge to]] & Capacity[[Cell]:[Cell]],Capacity[[Discharge Current]:[Discharge Current]],0) > 0,TRUE,FALSE) -> TRUE | D41: =IF( _xlfn.XLOOKUP(D$15 & D$12,Capacity[[Discharge to]:[Discharge to]] & Capacity[[Cell]:[Cell]],Capacity[[Discharge Current]:[Discharge Current]],0) > 0,TRUE,FALSE) -> TRUE | E41: =IF( _xlfn.XLOOKUP(E$15 & E$12,Capacity[[Discharge to]:[Discharge to]] & Capacity[[Cell]:[Cell]],Capacity[[Discharge Current]:[Discharge Current]],0) > 0,TRUE,FALSE) -> FALSE | F41: =IF( _xlfn.XLOOKUP(F$15 & F$12,Capacity[[Discharge to]:[Discharge to]] & Capacity[[Cell]:[Cell]],Capacity[[Discharge Current]:[Discharge Current]],0) > 0,TRUE,FALSE) -> FALSE | G41: =IF( _xlfn.XLOOKUP(G$15 & G$12,Capacity[[Discharge to]:[Discharge to]] & Capacity[[Cell]:[Cell]],Capacity[[Discharge Current]:[Discharge Current]],0) > 0,TRUE,FALSE) -> FALSE
A42: Current - Lower | B42: =IF(B$41, _xlfn.XLOOKUP(B$35, INDIRECT("Data!$C$" & _xlfn.XMATCH(B$15&B$12,Capacity[[Discharge to]:[Discharge to]]&Capacity[[Cell]:[Cell]],,1)+1 & ":" & "$C$" & _xlfn.XMATCH(B$15&B$12,Capacity[[Discharge to]:[Discharge to]]&Capacity[[Cell]:[Cell]],,-1)+1 ), INDIRECT("Data!$C$" & _xlfn.XMATCH(B$15&B$12,Capacity[[Discharge to]:[Discharge to]]&Capacity[[Cell]:[Cell]],,1)+1 & ":" & "$C$" & _xlfn.XMATCH(B$15&B$12,Capacity[[Discharge to]:[Discharge to]]&Capacity[[Cell]:[Cell]],,-1)+1 ), _xlfn.XLOOKUP(B$35, INDIRECT("Data!$C$" & _xlfn.XMATCH(B$15&B$12,Capacity[[Discharge to]:[Discharge to]]&Capacity[[Cell]:[Cell]],,1)+1 & ":" & "$C$" & _xlfn.XMATCH(B$15&B$12,Capacity[[Discharge to]:[Discharge to]]&Capacity[[Cell]:[Cell]],,-1)+1 ), INDIRECT("Data!$C$" & _xlfn.XMATCH(B$15&B$12,Capacity[[Discharge to]:[Discharge to]]&Capacity[[Cell]:[Cell]],,1)+1 & ":" & "$C$" & _xlfn.XMATCH(B$15&B$12,Capacity[[Discharge to]:[Discharge to]]&Capacity[[Cell]:[Cell]],,-1)+1 ), ,1), -1 ), "" ) -> 0.52 | C42: =IF(C$41, _xlfn.XLOOKUP(C$35, INDIRECT("Data!$C$" & _xlfn.XMATCH(C$15&C$12,Capacity[[Discharge to]:[Discharge to]]&Capacity[[Cell]:[Cell]],,1)+1 & ":" & "$C$" & _xlfn.XMATCH(C$15&C$12,Capacity[[Discharge to]:[Discharge to]]&Capacity[[Cell]:[Cell]],,-1)+1 ), INDIRECT("Data!$C$" & _xlfn.XMATCH(C$15&C$12,Capacity[[Discharge to]:[Discharge to]]&Capacity[[Cell]:[Cell]],,1)+1 & ":" & "$C$" & _xlfn.XMATCH(C$15&C$12,Capacity[[Discharge to]:[Discharge to]]&Capacity[[Cell]:[Cell]],,-1)+1 ), _xlfn.XLOOKUP(C$35, INDIRECT("Data!$C$" & _xlfn.XMATCH(C$15&C$12,Capacity[[Discharge to]:[Discharge to]]&Capacity[[Cell]:[Cell]],,1)+1 & ":" & "$C$" & _xlfn.XMATCH(C$15&C$12,Capacity[[Discharge to]:[Discharge to]]&Capacity[[Cell]:[Cell]],,-1)+1 ), INDIRECT("Data!$C$" & _xlfn.XMATCH(C$15&C$12,Capacity[[Discharge to]:[Discharge to]]&Capacity[[Cell]:[Cell]],,1)+1 & ":" & "$C$" & _xlfn.XMATCH(C$15&C$12,Capacity[[Discharge to]:[Discharge to]]&Capacity[[Cell]:[Cell]],,-1)+1 ), ,1), -1 ), "" ) -> 5 | D42: =IF(D$41, _xlfn.XLOOKUP(D$35, INDIRECT("Data!$C$" & _xlfn.XMATCH(D$15&D$12,Capacity[[Discharge to]:[Discharge to]]&Capacity[[Cell]:[Cell]],,1)+1 & ":" & "$C$" & _xlfn.XMATCH(D$15&D$12,Capacity[[Discharge to]:[Discharge to]]&Capacity[[Cell]:[Cell]],,-1)+1 ), INDIRECT("Data!$C$" & _xlfn.XMATCH(D$15&D$12,Capacity[[Discharge to]:[Discharge to]]&Capacity[[Cell]:[Cell]],,1)+1 & ":" & "$C$" & _xlfn.XMATCH(D$15&D$12,Capacity[[Discharge to]:[Discharge to]]&Capacity[[Cell]:[Cell]],,-1)+1 ), _xlfn.XLOOKUP(D$35, INDIRECT("Data!$C$" & _xlfn.XMATCH(D$15&D$12,Capacity[[Discharge to]:[Discharge to]]&Capacity[[Cell]:[Cell]],,1)+1 & ":" & "$C$" & _xlfn.XMATCH(D$15&D$12,Capacity[[Discharge to]:[Discharge to]]&Capacity[[Cell]:[Cell]],,-1)+1 ), INDIRECT("Data!$C$" & _xlfn.XMATCH(D$15&D$12,Capacity[[Discharge to]:[Discharge to]]&Capacity[[Cell]:[Cell]],,1)+1 & ":" & "$C$" & _xlfn.XMATCH(D$15&D$12,Capacity[[Discharge to]:[Discharge to]]&Capacity[[Cell]:[Cell]],,-1)+1 ), ,1), -1 ), "" ) -> 0.84 | E42: =IF(E$41, _xlfn.XLOOKUP(E$35, INDIRECT("Data!$C$" & _xlfn.XMATCH(E$15&E$12,Capacity[[Discharge to]:[Discharge to]]&Capacity[[Cell]:[Cell]],,1)+1 & ":" & "$C$" & _xlfn.XMATCH(E$15&E$12,Capacity[[Discharge to]:[Discharge to]]&Capacity[[Cell]:[Cell]],,-1)+1 ), INDIRECT("Data!$C$" & _xlfn.XMATCH(E$15&E$12,Capacity[[Discharge to]:[Discharge to]]&Capacity[[Cell]:[Cell]],,1)+1 & ":" & "$C$" & _xlfn.XMATCH(E$15&E$12,Capacity[[Discharge to]:[Discharge to]]&Capacity[[Cell]:[Cell]],,-1)+1 ), _xlfn.XLOOKUP(E$35, INDIRECT("Data!$C$" & _xlfn.XMATCH(E$15&E$12,Capacity[[Discharge to]:[Discharge to]]&Capacity[[Cell]:[Cell]],,1)+1 & ":" & "$C$" & _xlfn.XMATCH(E$15&E$12,Capacity[[Discharge to]:[Discharge to]]&Capacity[[Cell]:[Cell]],,-1)+1 ), INDIRECT("Data!$C$" & _xlfn.XMATCH(E$15&E$12,Capacity[[Discharge to]:[Discharge to]]&Capacity[[Cell]:[Cell]],,1)+1 & ":" & "$C$" & _xlfn.XMATCH(E$15&E$12,Capacity[[Discharge to]:[Discharge to]]&Capacity[[Cell]:[Cell]],,-1)+1 ), ,1), -1 ), "" ) ->  | F42: =IF(F$41, _xlfn.XLOOKUP(F$35, INDIRECT("Data!$C$" & _xlfn.XMATCH(F$15&F$12,Capacity[[Discharge to]:[Discharge to]]&Capacity[[Cell]:[Cell]],,1)+1 & ":" & "$C$" & _xlfn.XMATCH(F$15&F$12,Capacity[[Discharge to]:[Discharge to]]&Capacity[[Cell]:[Cell]],,-1)+1 ), INDIRECT("Data!$C$" & _xlfn.XMATCH(F$15&F$12,Capacity[[Discharge to]:[Discharge to]]&Capacity[[Cell]:[Cell]],,1)+1 & ":" & "$C$" & _xlfn.XMATCH(F$15&F$12,Capacity[[Discharge to]:[Discharge to]]&Capacity[[Cell]:[Cell]],,-1)+1 ), _xlfn.XLOOKUP(F$35, INDIRECT("Data!$C$" & _xlfn.XMATCH(F$15&F$12,Capacity[[Discharge to]:[Discharge to]]&Capacity[[Cell]:[Cell]],,1)+1 & ":" & "$C$" & _xlfn.XMATCH(F$15&F$12,Capacity[[Discharge to]:[Discharge to]]&Capacity[[Cell]:[Cell]],,-1)+1 ), INDIRECT("Data!$C$" & _xlfn.XMATCH(F$15&F$12,Capacity[[Discharge to]:[Discharge to]]&Capacity[[Cell]:[Cell]],,1)+1 & ":" & "$C$" & _xlfn.XMATCH(F$15&F$12,Capacity[[Discharge to]:[Discharge to]]&Capacity[[Cell]:[Cell]],,-1)+1 ), ,1), -1 ), "" ) ->  | G42: =IF(G$41, _xlfn.XLOOKUP(G$35, INDIRECT("Data!$C$" & _xlfn.XMATCH(G$15&G$12,Capacity[[Discharge to]:[Discharge to]]&Capacity[[Cell]:[Cell]],,1)+1 & ":" & "$C$" & _xlfn.XMATCH(G$15&G$12,Capacity[[Discharge to]:[Discharge to]]&Capacity[[Cell]:[Cell]],,-1)+1 ), INDIRECT("Data!$C$" & _xlfn.XMATCH(G$15&G$12,Capacity[[Discharge to]:[Discharge to]]&Capacity[[Cell]:[Cell]],,1)+1 & ":" & "$C$" & _xlfn.XMATCH(G$15&G$12,Capacity[[Discharge to]:[Discharge to]]&Capacity[[Cell]:[Cell]],,-1)+1 ), _xlfn.XLOOKUP(G$35, INDIRECT("Data!$C$" & _xlfn.XMATCH(G$15&G$12,Capacity[[Discharge to]:[Discharge to]]&Capacity[[Cell]:[Cell]],,1)+1 & ":" & "$C$" & _xlfn.XMATCH(G$15&G$12,Capacity[[Discharge to]:[Discharge to]]&Capacity[[Cell]:[Cell]],,-1)+1 ), INDIRECT("Data!$C$" & _xlfn.XMATCH(G$15&G$12,Capacity[[Discharge to]:[Discharge to]]&Capacity[[Cell]:[Cell]],,1)+1 & ":" & "$C$" & _xlfn.XMATCH(G$15&G$12,Capacity[[Discharge to]:[Discharge to]]&Capacity[[Cell]:[Cell]],,-1)+1 ), ,1), -1 ), "" ) -> 
A43: Upper - Upper | B43: =IF(B$41, _xlfn.XLOOKUP(B$35, INDIRECT("Data!$C$" & _xlfn.XMATCH(B$15&B$12,Capacity[[Discharge to]:[Discharge to]]&Capacity[[Cell]:[Cell]],,1)+1 & ":" & "$C$" & _xlfn.XMATCH(B$15&B$12,Capacity[[Discharge to]:[Discharge to]]&Capacity[[Cell]:[Cell]],,-1)+1 ), INDIRECT("Data!$C$" & _xlfn.XMATCH(B$15&B$12,Capacity[[Discharge to]:[Discharge to]]&Capacity[[Cell]:[Cell]],,1)+1 & ":" & "$C$" & _xlfn.XMATCH(B$15&B$12,Capacity[[Discharge to]:[Discharge to]]&Capacity[[Cell]:[Cell]],,-1)+1 ), _xlfn.XLOOKUP(B$35, INDIRECT("Data!$C$" & _xlfn.XMATCH(B$15&B$12,Capacity[[Discharge to]:[Discharge to]]&Capacity[[Cell]:[Cell]],,1)+1 & ":" & "$C$" & _xlfn.XMATCH(B$15&B$12,Capacity[[Discharge to]:[Discharge to]]&Capacity[[Cell]:[Cell]],,-1)+1 ), INDIRECT("Data!$C$" & _xlfn.XMATCH(B$15&B$12,Capacity[[Discharge to]:[Discharge to]]&Capacity[[Cell]:[Cell]],,1)+1 & ":" & "$C$" & _xlfn.XMATCH(B$15&B$12,Capacity[[Discharge to]:[Discharge to]]&Capacity[[Cell]:[Cell]],,-1)+1 ), ,-1), 1 ), "" ) -> 2.6 | C43: =IF(C$41, _xlfn.XLOOKUP(C$35, INDIRECT("Data!$C$" & _xlfn.XMATCH(C$15&C$12,Capacity[[Discharge to]:[Discharge to]]&Capacity[[Cell]:[Cell]],,1)+1 & ":" & "$C$" & _xlfn.XMATCH(C$15&C$12,Capacity[[Discharge to]:[Discharge to]]&Capacity[[Cell]:[Cell]],,-1)+1 ), INDIRECT("Data!$C$" & _xlfn.XMATCH(C$15&C$12,Capacity[[Discharge to]:[Discharge to]]&Capacity[[Cell]:[Cell]],,1)+1 & ":" & "$C$" & _xlfn.XMATCH(C$15&C$12,Capacity[[Discharge to]:[Discharge to]]&Capacity[[Cell]:[Cell]],,-1)+1 ), _xlfn.XLOOKUP(C$35, INDIRECT("Data!$C$" & _xlfn.XMATCH(C$15&C$12,Capacity[[Discharge to]:[Discharge to]]&Capacity[[Cell]:[Cell]],,1)+1 & ":" & "$C$" & _xlfn.XMATCH(C$15&C$12,Capacity[[Discharge to]:[Discharge to]]&Capacity[[Cell]:[Cell]],,-1)+1 ), INDIRECT("Data!$C$" & _xlfn.XMATCH(C$15&C$12,Capacity[[Discharge to]:[Discharge to]]&Capacity[[Cell]:[Cell]],,1)+1 & ":" & "$C$" & _xlfn.XMATCH(C$15&C$12,Capacity[[Discharge to]:[Discharge to]]&Capacity[[Cell]:[Cell]],,-1)+1 ), ,-1), 1 ), "" ) -> 5 | D43: =IF(D$41, _xlfn.XLOOKUP(D$35, INDIRECT("Data!$C$" & _xlfn.XMATCH(D$15&D$12,Capacity[[Discharge to]:[Discharge to]]&Capacity[[Cell]:[Cell]],,1)+1 & ":" & "$C$" & _xlfn.XMATCH(D$15&D$12,Capacity[[Discharge to]:[Discharge to]]&Capacity[[Cell]:[Cell]],,-1)+1 ), INDIRECT("Data!$C$" & _xlfn.XMATCH(D$15&D$12,Capacity[[Discharge to]:[Discharge to]]&Capacity[[Cell]:[Cell]],,1)+1 & ":" & "$C$" & _xlfn.XMATCH(D$15&D$12,Capacity[[Discharge to]:[Discharge to]]&Capacity[[Cell]:[Cell]],,-1)+1 ), _xlfn.XLOOKUP(D$35, INDIRECT("Data!$C$" & _xlfn.XMATCH(D$15&D$12,Capacity[[Discharge to]:[Discharge to]]&Capacity[[Cell]:[Cell]],,1)+1 & ":" & "$C$" & _xlfn.XMATCH(D$15&D$12,Capacity[[Discharge to]:[Discharge to]]&Capacity[[Cell]:[Cell]],,-1)+1 ), INDIRECT("Data!$C$" & _xlfn.XMATCH(D$15&D$12,Capacity[[Discharge to]:[Discharge to]]&Capacity[[Cell]:[Cell]],,1)+1 & ":" & "$C$" & _xlfn.XMATCH(D$15&D$12,Capacity[[Discharge to]:[Discharge to]]&Capacity[[Cell]:[Cell]],,-1)+1 ), ,-1), 1 ), "" ) -> 4.2 | E43: =IF(E$41, _xlfn.XLOOKUP(E$35, INDIRECT("Data!$C$" & _xlfn.XMATCH(E$15&E$12,Capacity[[Discharge to]:[Discharge to]]&Capacity[[Cell]:[Cell]],,1)+1 & ":" & "$C$" & _xlfn.XMATCH(E$15&E$12,Capacity[[Discharge to]:[Discharge to]]&Capacity[[Cell]:[Cell]],,-1)+1 ), INDIRECT("Data!$C$" & _xlfn.XMATCH(E$15&E$12,Capacity[[Discharge to]:[Discharge to]]&Capacity[[Cell]:[Cell]],,1)+1 & ":" & "$C$" & _xlfn.XMATCH(E$15&E$12,Capacity[[Discharge to]:[Discharge to]]&Capacity[[Cell]:[Cell]],,-1)+1 ), _xlfn.XLOOKUP(E$35, INDIRECT("Data!$C$" & _xlfn.XMATCH(E$15&E$12,Capacity[[Discharge to]:[Discharge to]]&Capacity[[Cell]:[Cell]],,1)+1 & ":" & "$C$" & _xlfn.XMATCH(E$15&E$12,Capacity[[Discharge to]:[Discharge to]]&Capacity[[Cell]:[Cell]],,-1)+1 ), INDIRECT("Data!$C$" & _xlfn.XMATCH(E$15&E$12,Capacity[[Discharge to]:[Discharge to]]&Capacity[[Cell]:[Cell]],,1)+1 & ":" & "$C$" & _xlfn.XMATCH(E$15&E$12,Capacity[[Discharge to]:[Discharge to]]&Capacity[[Cell]:[Cell]],,-1)+1 ), ,-1), 1 ), "" ) ->  | F43: =IF(F$41, _xlfn.XLOOKUP(F$35, INDIRECT("Data!$C$" & _xlfn.XMATCH(F$15&F$12,Capacity[[Discharge to]:[Discharge to]]&Capacity[[Cell]:[Cell]],,1)+1 & ":" & "$C$" & _xlfn.XMATCH(F$15&F$12,Capacity[[Discharge to]:[Discharge to]]&Capacity[[Cell]:[Cell]],,-1)+1 ), INDIRECT("Data!$C$" & _xlfn.XMATCH(F$15&F$12,Capacity[[Discharge to]:[Discharge to]]&Capacity[[Cell]:[Cell]],,1)+1 & ":" & "$C$" & _xlfn.XMATCH(F$15&F$12,Capacity[[Discharge to]:[Discharge to]]&Capacity[[Cell]:[Cell]],,-1)+1 ), _xlfn.XLOOKUP(F$35, INDIRECT("Data!$C$" & _xlfn.XMATCH(F$15&F$12,Capacity[[Discharge to]:[Discharge to]]&Capacity[[Cell]:[Cell]],,1)+1 & ":" & "$C$" & _xlfn.XMATCH(F$15&F$12,Capacity[[Discharge to]:[Discharge to]]&Capacity[[Cell]:[Cell]],,-1)+1 ), INDIRECT("Data!$C$" & _xlfn.XMATCH(F$15&F$12,Capacity[[Discharge to]:[Discharge to]]&Capacity[[Cell]:[Cell]],,1)+1 & ":" & "$C$" & _xlfn.XMATCH(F$15&F$12,Capacity[[Discharge to]:[Discharge to]]&Capacity[[Cell]:[Cell]],,-1)+1 ), ,-1), 1 ), "" ) ->  | G43: =IF(G$41, _xlfn.XLOOKUP(G$35, INDIRECT("Data!$C$" & _xlfn.XMATCH(G$15&G$12,Capacity[[Discharge to]:[Discharge to]]&Capacity[[Cell]:[Cell]],,1)+1 & ":" & "$C$" & _xlfn.XMATCH(G$15&G$12,Capacity[[Discharge to]:[Discharge to]]&Capacity[[Cell]:[Cell]],,-1)+1 ), INDIRECT("Data!$C$" & _xlfn.XMATCH(G$15&G$12,Capacity[[Discharge to]:[Discharge to]]&Capacity[[Cell]:[Cell]],,1)+1 & ":" & "$C$" & _xlfn.XMATCH(G$15&G$12,Capacity[[Discharge to]:[Discharge to]]&Capacity[[Cell]:[Cell]],,-1)+1 ), _xlfn.XLOOKUP(G$35, INDIRECT("Data!$C$" & _xlfn.XMATCH(G$15&G$12,Capacity[[Discharge to]:[Discharge to]]&Capacity[[Cell]:[Cell]],,1)+1 & ":" & "$C$" & _xlfn.XMATCH(G$15&G$12,Capacity[[Discharge to]:[Discharge to]]&Capacity[[Cell]:[Cell]],,-1)+1 ), INDIRECT("Data!$C$" & _xlfn.XMATCH(G$15&G$12,Capacity[[Discharge to]:[Discharge to]]&Capacity[[Cell]:[Cell]],,1)+1 & ":" & "$C$" & _xlfn.XMATCH(G$15&G$12,Capacity[[Discharge to]:[Discharge to]]&Capacity[[Cell]:[Cell]],,-1)+1 ), ,-1), 1 ), "" ) -> 
A44: Capacity - Lower | B44: =IF(B$41, _xlfn.XLOOKUP(B$15&B$28&B$42,Capacity[[Discharge to]:[Discharge to]]&Capacity[[Cell]:[Cell]]&Capacity[[Discharge Current]:[Discharge Current]],Capacity[[Capacity]:[Capacity]],_xlfn.XLOOKUP(B$15&B$28&B$42,Capacity[[Discharge to]:[Discharge to]]&Capacity[[Cell]:[Cell]]&Capacity[[Discharge Current]:[Discharge Current]],Capacity[[Capacity]:[Capacity]],,1),1),"") -> 2550 | C44: =IF(C41, _xlfn.XLOOKUP(C$15&C$28&C$42,Capacity[[Discharge to]:[Discharge to]]&Capacity[[Cell]:[Cell]]&Capacity[[Discharge Current]:[Discharge Current]],Capacity[[Capacity]:[Capacity]],_xlfn.XLOOKUP(C$15&C$28&C$42,Capacity[[Discharge to]:[Discharge to]]&Capacity[[Cell]:[Cell]]&Capacity[[Discharge Current]:[Discharge Current]],Capacity[[Capacity]:[Capacity]],,1),-1),"") -> 2540 | D44: =IF(D41, _xlfn.XLOOKUP(D$15&D$28&D$42,Capacity[[Discharge to]:[Discharge to]]&Capacity[[Cell]:[Cell]]&Capacity[[Discharge Current]:[Discharge Current]],Capacity[[Capacity]:[Capacity]],_xlfn.XLOOKUP(D$15&D$28&D$42,Capacity[[Discharge to]:[Discharge to]]&Capacity[[Cell]:[Cell]]&Capacity[[Discharge Current]:[Discharge Current]],Capacity[[Capacity]:[Capacity]],,1),-1),"") -> 4250 | E44: =IF(E41, _xlfn.XLOOKUP(E$15&E$28&E$42,Capacity[[Discharge to]:[Discharge to]]&Capacity[[Cell]:[Cell]]&Capacity[[Discharge Current]:[Discharge Current]],Capacity[[Capacity]:[Capacity]],_xlfn.XLOOKUP(E$15&E$28&E$42,Capacity[[Discharge to]:[Discharge to]]&Capacity[[Cell]:[Cell]]&Capacity[[Discharge Current]:[Discharge Current]],Capacity[[Capacity]:[Capacity]],,1),-1),"") ->  | F44: =IF(F41, _xlfn.XLOOKUP(F$15&F$28&F$42,Capacity[[Discharge to]:[Discharge to]]&Capacity[[Cell]:[Cell]]&Capacity[[Discharge Current]:[Discharge Current]],Capacity[[Capacity]:[Capacity]],_xlfn.XLOOKUP(F$15&F$28&F$42,Capacity[[Discharge to]:[Discharge to]]&Capacity[[Cell]:[Cell]]&Capacity[[Discharge Current]:[Discharge Current]],Capacity[[Capacity]:[Capacity]],,1),-1),"") ->  | G44: =IF(G41, _xlfn.XLOOKUP(G$15&G$28&G$42,Capacity[[Discharge to]:[Discharge to]]&Capacity[[Cell]:[Cell]]&Capacity[[Discharge Current]:[Discharge Current]],Capacity[[Capacity]:[Capacity]],_xlfn.XLOOKUP(G$15&G$28&G$42,Capacity[[Discharge to]:[Discharge to]]&Capacity[[Cell]:[Cell]]&Capacity[[Discharge Current]:[Discharge Current]],Capacity[[Capacity]:[Capacity]],,1),-1),"") -> 
A45: Capacity - Upper | B45: =IF(B$41, _xlfn.XLOOKUP(B$15&B$28&B$43,Capacity[[Discharge to]:[Discharge to]]&Capacity[[Cell]:[Cell]]&Capacity[[Discharge Current]:[Discharge Current]],Capacity[[Capacity]:[Capacity]],,1),"") -> 2450 | C45: =IF(C$41, _xlfn.XLOOKUP(C$15&C$28&C$43,Capacity[[Discharge to]:[Discharge to]]&Capacity[[Cell]:[Cell]]&Capacity[[Discharge Current]:[Discharge Current]],Capacity[[Capacity]:[Capacity]],,1),"") -> 2540 | D45: =IF(D$41, _xlfn.XLOOKUP(D$15&D$28&D$43,Capacity[[Discharge to]:[Discharge to]]&Capacity[[Cell]:[Cell]]&Capacity[[Discharge Current]:[Discharge Current]],Capacity[[Capacity]:[Capacity]],,1),"") -> 4200 | E45: =IF(E$41, _xlfn.XLOOKUP(E$15&E$28&E$43,Capacity[[Discharge to]:[Discharge to]]&Capacity[[Cell]:[Cell]]&Capacity[[Discharge Current]:[Discharge Current]],Capacity[[Capacity]:[Capacity]],,1),"") ->  | F45: =IF(F$41, _xlfn.XLOOKUP(F$15&F$28&F$43,Capacity[[Discharge to]:[Discharge to]]&Capacity[[Cell]:[Cell]]&Capacity[[Discharge Current]:[Discharge Current]],Capacity[[Capacity]:[Capacity]],,1),"") ->  | G45: =IF(G$41, _xlfn.XLOOKUP(G$15&G$28&G$43,Capacity[[Discharge to]:[Discharge to]]&Capacity[[Cell]:[Cell]]&Capacity[[Discharge Current]:[Discharge Current]],Capacity[[Capacity]:[Capacity]],,1),"") -> 
A46: Cell Capacity at Standard Discharge Current | B46: =IF( B$42=B$43, _xlfn.XLOOKUP(B$15&B$28&B$42,Capacity[[Discharge to]:[Discharge to]]&Capacity[[Cell]:[Cell]]&Capacity[[Discharge Current]:[Discharge Current]],Capacity[[Capacity]:[Capacity]],""), _xlfn.FORECAST.LINEAR(B$15,B$44:B$45,B$42:B$43)) -> 2454.807692 | C46: =IF( C$42=C$43, _xlfn.XLOOKUP(C$15&C$28&C$42,Capacity[[Discharge to]:[Discharge to]]&Capacity[[Cell]:[Cell]]&Capacity[[Discharge Current]:[Discharge Current]],Capacity[[Capacity]:[Capacity]],""), _xlfn.FORECAST.LINEAR(C$15,C$44:C$45,C$42:C$43)) -> 2540 | D46: =IF( D$42=D$43, _xlfn.XLOOKUP(D$15&D$28&D$42,Capacity[[Discharge to]:[Discharge to]]&Capacity[[Cell]:[Cell]]&Capacity[[Discharge Current]:[Discharge Current]],Capacity[[Capacity]:[Capacity]],""), _xlfn.FORECAST.LINEAR(D$15,D$44:D$45,D$42:D$43)) -> 4225.297619 | E46: =IF( E$42=E$43, _xlfn.XLOOKUP(E$15&E$28&E$42,Capacity[[Discharge to]:[Discharge to]]&Capacity[[Cell]:[Cell]]&Capacity[[Discharge Current]:[Discharge Current]],Capacity[[Capacity]:[Capacity]],""), _xlfn.FORECAST.LINEAR(E$15,E$44:E$45,E$42:E$43)) ->  | F46: =IF( F$42=F$43, _xlfn.XLOOKUP(F$15&F$28&F$42,Capacity[[Discharge to]:[Discharge to]]&Capacity[[Cell]:[Cell]]&Capacity[[Discharge Current]:[Discharge Current]],Capacity[[Capacity]:[Capacity]],""), _xlfn.FORECAST.LINEAR(F$15,F$44:F$45,F$42:F$43)) ->  | G46: =IF( G$42=G$43, _xlfn.XLOOKUP(G$15&G$28&G$42,Capacity[[Discharge to]:[Discharge to]]&Capacity[[Cell]:[Cell]]&Capacity[[Discharge Current]:[Discharge Current]],Capacity[[Capacity]:[Capacity]],""), _xlfn.FORECAST.LINEAR(G$15,G$44:G$45,G$42:G$43)) -> 
A47: Pack Capacity at Standard Discharge Current | B47: =IFERROR(B$46*B$5,"") -> 4909.615385 | C47: 5080 | D47: 8450.595238
A48: Run Time (hours) | B48: =IFERROR( B47/B6/1000,"") -> 0.9819230769 | C48: 1.016 | D48: 1.690119048

Sheet Data
A1: Discharge to | B1: Cell | C1: Discharge Current | D1: Capacity
A2: 3 | B2: INR18650-P26A | C2: 0.52 | D2: 2500 | I2: Reapply Sort after adding more items
A3: 3 | B3: INR18650-P26A | C3: 2.6 | D3: 2300
A4: 3 | B4: INR18650-P26A | C4: 10 | D4: 2350
A5: 3 | B5: INR18650-P26A | C5: 20 | D5: 2200
A6: 2.5 | B6: ANR26650M1B | C6: 5 | D6: 2540
A7: 2.5 | B7: ANR26650M1B | C7: 50 | D7: 2510
A8: 2.5 | B8: INR18650-P26A | C8: 0.52 | D8: 2550
A9: 2.5 | B9: INR18650-P26A | C9: 2.6 | D9: 2450
A10: 2.5 | B10: INR18650-P26A | C10: 10 | D10: 2500
A11: 2.5 | B11: INR18650-P26A | C11: 20 | D11: 2500
A12: 2.5 | B12: INR-21700-P42A | C12: 0.84 | D12: 4250
A13: 2.5 | B13: INR-21700-P42A | C13: 4.2 | D13: 4200
A14: 2.5 | B14: INR-21700-P42A | C14: 10 | D14: 4175
A15: 2.5 | B15: INR-21700-P42A | C15: 20 | D15: 4175
A16: 2.5 | B16: INR-21700-P42A | C16: 30 | D16: 4100
